[Event "EYTCC Open U18 2018"]
[Site "Bad Blankeburg"]
[Date "2018.07.18"]
[Round "7"]
[White "Blohberger, Felix"]
[Black "Keymer, Vincent"]
[Result "0-1"]
[ECO "B51"]
[WhiteElo "2420"]
[BlackElo "2466"]
[Annotator "ChessBase"]
[PlyCount "84"]
[EventDate "2018.07.12"]
[EventType "swiss"]
[EventCountry "GER"]
[SourceTitle "playchess.com"]
[Source "ChessBase"]
[SourceQuality "1"]
[WhiteTeam "Austria"]
[BlackTeam "Germany"]
[WhiteTeamCountry "AUT"]
[BlackTeamCountry "GER"]
[TimeControl "40/5400+30:1800+30"]

1. e4 {[%emt 0:00:00]} c5 {[%emt 0:00:00]} 2. Nf3 {[%emt 0:00:00]} d6 {[%emt 0:00:00]} 3. Bb5+ {[%emt 0:00:00]} Nd7 {[%emt 0:00:00]} 4. d4 {[%emt 0:00:57]} cxd4 {[%emt 0:00:00]} 5. Qxd4 {[%emt 0:00:12]} a6 {[%emt 0:00:00]} 6. Bxd7+ {[%emt 0:00:12]} Bxd7 {[%emt 0:00:04]} 7. O-O {[%emt 0:00:15]} e5 {[%emt 0:00:25]} 8. Qd3 {[%emt 0:00:13]} Qc7 {[%emt 0:00:09]} 9. c4 {[%emt 0:14:08]} b5 {[%emt 0:00:16]} 10. b3 {[%emt 0:05:02]} bxc4 {[%emt 0:01:23]} 11. bxc4 {[%emt 0:00:11]} Rc8 {[%emt 0:00:11]} 12. Na3 {[%emt 0:01:33]} Be7 {[%emt 0:13:59]} 13. Be3 {[%emt 0:06:39]} Nf6 {[%emt 0:00:15]} 14. Bg5 {[%emt 0:07:13]} O-O {[%emt 0:02:51]} 15. Rac1 {[%emt 0:04:05]} h6 {[%emt 0:05:31]} 16. Bxf6 {[%emt 0:00:11]} Bxf6 {[%emt 0:00:06]} 17. Rfd1 {[%emt 0:00:48]} Be6 {[%emt 0:02:22]} 18. Rc2 {[%emt 0:20:01]} Qa7 {[%emt 0:07:27]} 19. Rdc1 {[%emt 0:02:17]} Rc6 {[%emt 0:00:57]} 20. Nb1 {[%emt 0:05:14]} Rfc8 {[%emt 0:00:30]} 21. Nbd2 {[%emt 0:01:51]} Bd8 {[%emt 0:09:29]} 22. h3 {[%emt 0:05:45]} Bb6 {[%emt 0:03:11]} 23. Nf1 {[%emt 0:02:41]} Bc5 {[%emt 0:02:31]} 24. N3h2 {[%emt 0:03:49]} Rb8 {[%emt 0:05:41]} 25. Ng4 {[%emt 0:01:07]} h5 {[%emt 0:04:22]} 26. Nge3 {[%emt 0:00:35]} g6 {[%emt 0:02:57]} 27. Kh2 {[%emt 0:03:18]} Kg7 {[%emt 0:04:01]} 28. Rd1 {[%emt 0:01:56]} Bd4 {[%emt 0:07:14]} 29. f4 {[%emt 0:03:49]} Bxe3 {[%emt 0:05:06]} 30. Nxe3 {[%emt 0:00:09]} exf4 {[%emt 0:00:10]} 31. Nd5 {[%emt 0:00:55]} Bxd5 {[%emt 0:01:28]} 32. exd5 {[%emt 0:02:14]} Rcc8 {[%emt 0:01:45]} 33. Re1 {[%emt 0:01:26]} Re8 {[%emt 0:01:34]} 34. Rce2 {[%emt 0:00:21]} Rxe2 {[%emt 0:01:38]} 35. Rxe2 {[%emt 0:00:06]} Qc5 {[%emt 0:07:10]} 36. Qe4 {[%emt 0:03:58]} Rb4 {[%emt 0:06:01]} 37. Qxf4 {[%emt 0:00:25]} Rxc4 {[%emt 0:00:04]} 38. Qf3 {[%emt 0:00:50]} Rc3 {[%emt 0:02:52]} 39. Qe4 {[%emt 0:00:50]} Rc1 {[%emt 0:00:11]} 40. Re3 {[%emt 0:04:07]} Rd1 {[%emt 0:02:44]} 41. Rd3 {[%emt 0:09:35]} Qg1+ {[%emt 0:00:21]} 42. Kg3 {[%emt 0:00:05]} h4+ {[%emt 0:00:04]} 0-1

[Event "EYTCC Open U18 2018"]
[Site "Bad Blankeburg"]
[Date "2018.07.18"]
[Round "7"]
[White "Martin, Julian"]
[Black "Morgunov, Marc"]
[Result "0-1"]
[ECO "C50"]
[WhiteElo "2415"]
[BlackElo "2362"]
[Annotator "ChessBase"]
[PlyCount "90"]
[EventDate "2018.07.12"]
[EventType "swiss"]
[EventCountry "GER"]
[SourceTitle "playchess.com"]
[Source "ChessBase"]
[SourceQuality "1"]
[WhiteTeam "Germany"]
[BlackTeam "Austria"]
[WhiteTeamCountry "GER"]
[BlackTeamCountry "AUT"]
[TimeControl "40/5400+30:1800+30"]

1. e4 {[%emt 0:00:00]} e5 {[%emt 0:00:00]} 2. Nf3 {[%emt 0:00:00]} Nc6 {[%emt 0:00:00]} 3. Bc4 {[%emt 0:00:00]} Bc5 {[%emt 0:00:00]} 4. d3 {[%emt 0:00:00]} Nf6 {[%emt 0:02:40]} 5. O-O {[%emt 0:00:22]} O-O {[%emt 0:01:11]} 6. h3 {[%emt 0:00:03]} d6 {[%emt 0:06:37]} 7. c3 {[%emt 0:00:40]} a5 {[%emt 0:02:55]} 8. Re1 {[%emt 0:00:42]} Bb6 {[%emt 0:13:40]} 9. Nbd2 {[%emt 0:03:45]} Ne7 {[%emt 0:02:20]} 10. d4 {[%emt 0:03:59]} Ng6 {[%emt 0:03:58]} 11. Bd3 {[%emt 0:02:16]} c6 {[%emt 0:04:16]} 12. Nf1 {[%emt 0:03:42]} exd4 {[%emt 0:05:45]} 13. cxd4 {[%emt 0:02:07]} Nh5 {[%emt 0:01:26]} 14. Bg5 {[%emt 0:03:56]} f6 {[%emt 0:02:07]} 15. Be3 {[%emt 0:01:54]} Nhf4 {[%emt 0:01:50]} 16. Bc2 {[%emt 0:10:28]} d5 {[%emt 0:04:34]} 17. Bxf4 {[%emt 0:16:34]} Nxf4 {[%emt 0:02:06]} 18. exd5 {[%emt 0:00:12]} cxd5 {[%emt 0:01:57]} 19. Ne3 {[%emt 0:01:35]} Be6 {[%emt 0:04:14]} 20. h4 {[%emt 0:01:19]} g6 {[%emt 0:02:13]} 21. g3 {[%emt 0:04:23]} Nh5 {[%emt 0:00:07]} 22. Nc4 {[%emt 0:10:07]} Ng7 {[%emt 0:07:00]} 23. Nxb6 {[%emt 0:00:46]} Qxb6 {[%emt 0:00:11]} 24. Re3 {[%emt 0:13:42]} Bg4 {[%emt 0:05:03]} 25. Rb3 {[%emt 0:03:14]} Qd6 {[%emt 0:00:23]} 26. Rxb7 {[%emt 0:01:44]} Rab8 {[%emt 0:00:13]} 27. Rxb8 {[%emt 0:00:49]} Rxb8 {[%emt 0:00:05]} 28. Bb3 {[%emt 0:03:34]} a4 {[%emt 0:05:57]} 29. Bxa4 {[%emt 0:01:48]} Nf5 {[%emt 0:00:12]} 30. Bb3 {[%emt 0:08:07]} Nxg3 {[%emt 0:05:07]} 31. Qd3 {[%emt 0:00:26]} Kg7 32. Re1 {[%emt 0:01:24]} Ne4 {[%emt 0:03:11]} 33. Qe3 {[%emt 0:01:28]} Re8 {[%emt 0:00:25]} 34. Nh2 {[%emt 0:00:20]} Bd7 {[%emt 0:02:28]} 35. Bd1 {[%emt 0:01:10]} Ng5 {[%emt 0:02:38]} 36. Qd2 {[%emt 0:00:12]} Qf4 {[%emt 0:00:11]} 37. Re3 Nh3+ {[%emt 0:05:29]} 38. Kg2 {[%emt 0:01:15]} Re4 {[%emt 0:00:26]} 39. Bf3 {[%emt 0:00:43]} Qxh4 {[%emt 0:01:55]} 40. Bxe4 {[%emt 0:00:41]} Qg5+ {[%emt 0:00:07]} 41. Ng4 {[%emt 0:05:14]} Bxg4 {[%emt 0:01:01]} 42. Kh2 {[%emt 0:12:28]} Qf4+ {[%emt 0:02:32]} 43. Kg2 {[%emt 0:00:36]} dxe4 {[%emt 0:00:11]} 44. Qc2 {[%emt 0:00:20]} Bf3+ {[%emt 0:01:44]} 45. Kf1 {[%emt 0:00:07]} Qh2 {[%emt 0:00:50]} 0-1

[Event "EYTCC Open U18 2018"]
[Site "Bad Blankeburg"]
[Date "2018.07.18"]
[Round "7"]
[White "Badelka, Olga"]
[Black "Teclaf, Pawel"]
[Result "1/2-1/2"]
[ECO "D34"]
[WhiteElo "2407"]
[BlackElo "2399"]
[Annotator "ChessBase"]
[PlyCount "62"]
[EventDate "2018.07.12"]
[EventType "swiss"]
[EventCountry "GER"]
[SourceTitle "playchess.com"]
[Source "ChessBase"]
[SourceQuality "1"]
[WhiteTeam "Belarus"]
[BlackTeam "Poland"]
[WhiteTeamCountry "BLR"]
[BlackTeamCountry "POL"]
[TimeControl "40/5400+30:1800+30"]

1. d4 {[%emt 0:00:00]} d5 {[%emt 0:00:00]} 2. c4 {[%emt 0:00:00]} e6 {[%emt 0:00:00]} 3. Nc3 {[%emt 0:00:02]} c5 {[%emt 0:00:00]} 4. cxd5 {[%emt 0:02:36]} exd5 {[%emt 0:00:00]} 5. Nf3 {[%emt 0:01:27]} Nf6 {[%emt 0:01:36]} 6. g3 {[%emt 0:03:12]} Nc6 {[%emt 0:00:43]} 7. Bg2 {[%emt 0:00:39]} Be7 {[%emt 0:00:19]} 8. dxc5 {[%emt 0:01:42]} Bxc5 {[%emt 0:01:36]} 9. O-O {[%emt 0:00:13]} O-O {[%emt 0:00:11]} 10. Bg5 {[%emt 0:00:31]} d4 {[%emt 0:00:17]} 11. Na4 {[%emt 0:08:54]} Be7 {[%emt 0:12:27]} 12. Rc1 {[%emt 0:00:04]} h6 {[%emt 0:02:26]} 13. Bf4 {[%emt 0:02:36]} Nh5 {[%emt 0:32:57]} 14. Bd2 {[%emt 0:02:51]} Be6 {[%emt 0:01:46]} 15. Nc5 {[%emt 0:01:32]} Bxc5 {[%emt 0:00:33]} 16. Rxc5 {[%emt 0:00:06]} Nf6 {[%emt 0:00:38]} 17. a3 {[%emt 0:24:03]} Ne4 {[%emt 0:01:05]} 18. Rb5 {[%emt 0:08:38]} a6 {[%emt 0:10:11]} 19. Rxb7 {[%emt 0:01:20]} Nc5 {[%emt 0:02:49]} 20. Rb4 {[%emt 0:00:05]} Rc8 {[%emt 0:01:05]} 21. Ne1 {[%emt 0:13:35]} Nxb4 {[%emt 0:00:53]} 22. Bxb4 {[%emt 0:00:03]} Re8 {[%emt 0:02:29]} 23. Bxc5 {[%emt 0:05:10]} Rxc5 {[%emt 0:00:04]} 24. Nd3 {[%emt 0:00:08]} Rc7 {[%emt 0:04:47]} 25. Nf4 {[%emt 0:06:18]} Bc4 {[%emt 0:02:45]} 26. Qd2 {[%emt 0:00:14]} Qd6 {[%emt 0:02:16]} 27. Bf3 {[%emt 0:01:36]} Rd8 {[%emt 0:01:03]} 28. h4 {[%emt 0:01:42]} Be6 {[%emt 0:03:24]} 29. Be4 {[%emt 0:01:50]} Qe5 {[%emt 0:00:36]} 30. Nxe6 {[%emt 0:01:09]} Qxe6 {[%emt 0:00:11]} 31. Bd3 {[%emt 0:00:17]} Qb6 {[%emt 0:03:01]} 1/2-1/2

[Event "EYTCC Open U18 2018"]
[Site "Bad Blankeburg"]
[Date "2018.07.18"]
[Round "7"]
[White "Buckels, Valentin"]
[Black "Angun, Batu"]
[Result "1-0"]
[ECO "D70"]
[WhiteElo "2353"]
[BlackElo "2122"]
[Annotator "NA"]
[PlyCount "61"]
[EventDate "2018.07.12"]
[EventType "swiss"]
[EventCountry "GER"]
[SourceTitle "playchess.com"]
[Source "ChessBase"]
[SourceQuality "1"]
[WhiteTeam "Germany"]
[BlackTeam "Turkey"]
[WhiteTeamCountry "GER"]
[BlackTeamCountry "TUR"]
[TimeControl "40/5400+30:1800+30"]

1. d4 {[%emt 0:00:00]} Nf6 {[%emt 0:00:00]} 2. c4 {[%emt 0:00:00]} g6 {[%emt 0:00:00]} 3. Nf3 {[%emt 0:00:00]} Bg7 {[%emt 0:00:00]} 4. g3 {[%emt 0:00:00]} O-O {[%emt 0:00:04]} 5. Bg2 {[%emt 0:00:00]} c6 {[%emt 0:00:07]} 6. O-O {[%emt 0:00:01]} d5 {[%emt 0:00:01]} 7. Qb3 {[%emt 0:00:05]} Qb6 {[%emt 0:00:26]} 8. Nc3 {[%emt 0:00:36]} Rd8 {[%emt 0:00:40]} 9. Rd1 {[%emt 0:00:24]} Na6 {[%emt 0:01:30]} 10. Qxb6 $1 {[%emt 0:11:42]} axb6 {[%emt 0:00:16]} 11. Na4 {[%emt 0:00:15]} Nd7 {[%emt 0:07:38]} 12. cxd5 {[%emt 0:09:28]} Nb4 {[%emt 0:06:21]} 13. Nc3 {[%emt 0:05:06]} Nxd5 {[%emt 0:01:07]} 14. Nxd5 {[%emt 0:01:03]} cxd5 {[%emt 0:00:01]} 15. Bf4 $16 {[%emt 0:00:15]} Ra6 {[%emt 0:00:27]} 16. Bc7 {[%emt 0:00:31]} Re8 {[%emt 0:02:18]} 17. e3 {[%emt 0:00:19]} b5 {[%emt 0:07:30]} 18. Bf1 {[%emt 0:01:10]} Rc6 {[%emt 0:00:06]} 19. Rac1 {[%emt 0:01:00]} b4 {[%emt 0:02:10]} 20. Bb5 {[%emt 0:00:16]} Rxc1 {[%emt 0:00:19]} 21. Rxc1 {[%emt 0:00:01]} Rf8 {[%emt 0:01:07]} 22. Ba5 {[%emt 0:02:08]} Nb8 {[%emt 0:01:00]} 23. Bxb4 {[%emt 0:00:44]} Bf6 {[%emt 0:00:01]} 24. Ne5 {[%emt 0:03:21]} Na6 {[%emt 0:00:38]} 25. Bxa6 {[%emt 0:03:45]} bxa6 {[%emt 0:00:05]} 26. Nc6 {[%emt 0:00:10]} Re8 {[%emt 0:00:04]} 27. Nxe7+ {[%emt 0:02:08]} Bxe7 {[%emt 0:00:02]} 28. Bxe7 {[%emt 0:00:09]} Rxe7 {[%emt 0:00:01]} 29. Rxc8+ {[%emt 0:00:08]} Kg7 {[%emt 0:00:01]} 30. Rc6 {[%emt 0:00:50]} Rb7 {[%emt 0:00:08]} 31. b3 {[%emt 0:00:15]} 1-0

[Event "EYTCC Open U18 2018"]
[Site "Bad Blankeburg"]
[Date "2018.07.18"]
[Round "7"]
[White "Morgunov, Daniel"]
[Black "Lagunow, Raphael"]
[Result "0-1"]
[ECO "B33"]
[WhiteElo "2346"]
[BlackElo "2411"]
[Annotator "ChessBase"]
[PlyCount "78"]
[EventDate "2018.07.12"]
[EventType "swiss"]
[EventCountry "GER"]
[SourceTitle "playchess.com"]
[Source "ChessBase"]
[SourceQuality "1"]
[WhiteTeam "Austria"]
[BlackTeam "Germany"]
[WhiteTeamCountry "AUT"]
[BlackTeamCountry "GER"]
[TimeControl "40/5400+30:1800+30"]

1. e4 {[%emt 0:00:00]} c5 {[%emt 0:00:00]} 2. Nf3 {[%emt 0:00:00]} Nc6 {[%emt 0:00:00]} 3. d4 {[%emt 0:00:00]} cxd4 {[%emt 0:00:00]} 4. Nxd4 {[%emt 0:00:00]} Nf6 {[%emt 0:00:20]} 5. Nc3 {[%emt 0:00:00]} e5 {[%emt 0:00:20]} 6. Ndb5 {[%emt 0:00:00]} d6 {[%emt 0:00:05]} 7. Bg5 {[%emt 0:00:03]} a6 {[%emt 0:00:05]} 8. Na3 {[%emt 0:00:04]} b5 {[%emt 0:00:04]} 9. Nd5 {[%emt 0:00:05]} Be7 {[%emt 0:00:07]} 10. Bxf6 {[%emt 0:00:05]} Bxf6 {[%emt 0:00:04]} 11. c3 {[%emt 0:00:08]} O-O {[%emt 0:00:37]} 12. Nc2 {[%emt 0:00:13]} Bg5 {[%emt 0:00:18]} 13. a4 {[%emt 0:00:53]} bxa4 {[%emt 0:00:10]} 14. Rxa4 {[%emt 0:01:04]} a5 {[%emt 0:00:06]} 15. Bc4 {[%emt 0:00:08]} Rb8 {[%emt 0:00:07]} 16. b3 {[%emt 0:00:06]} Kh8 {[%emt 0:00:14]} 17. Nce3 {[%emt 0:00:14]} Ne7 {[%emt 0:00:06]} 18. Nxe7 {[%emt 0:00:11]} Qxe7 {[%emt 0:00:11]} 19. Nd5 {[%emt 0:00:08]} Qd8 {[%emt 0:00:05]} 20. O-O {[%emt 0:00:55]} f5 {[%emt 0:09:20]} 21. Qe2 {[%emt 0:00:12]} fxe4 {[%emt 0:07:25]} 22. Qxe4 {[%emt 0:00:18]} Bf5 {[%emt 0:19:06]} 23. Qe2 {[%emt 0:00:16]} Be6 {[%emt 0:00:49]} 24. Rfa1 {[%emt 0:13:58]} Bxd5 {[%emt 0:07:53]} 25. Bxd5 {[%emt 0:00:05]} Qb6 {[%emt 0:00:06]} 26. Kf1 {[%emt 0:22:49]} Qc5 {[%emt 0:03:14]} 27. Bc4 {[%emt 0:17:59]} Bd8 {[%emt 0:02:09]} 28. Rd1 {[%emt 0:00:44]} Bb6 {[%emt 0:02:31]} 29. Ra2 {[%emt 0:00:17]} a4 {[%emt 0:12:20]} 30. Rc2 {[%emt 0:18:55]} axb3 {[%emt 0:17:09]} 31. Bxb3 {[%emt 0:00:07]} Qa3 {[%emt 0:01:54]} 32. Qc4 {[%emt 0:04:54]} Bc5 {[%emt 0:12:33]} 33. Ba2 {[%emt 0:04:37]} Rb2 {[%emt 0:00:09]} 34. Rdd2 {[%emt 0:00:57]} Rxc2 {[%emt 0:00:17]} 35. Rxc2 {[%emt 0:00:04]} Bxf2 {[%emt 0:01:09]} 36. Qd3 {[%emt 0:08:56]} Qa7 {[%emt 0:02:02]} 37. Ke2 {[%emt 0:02:10]} Bh4 {[%emt 0:02:00]} 38. Qc4 {[%emt 0:05:16]} Bg5 {[%emt 0:01:46]} 39. Qd5 {[%emt 0:01:28]} Qe3+ {[%emt 0:00:24]} 0-1

[Event "EYTCC Open U18 2018"]
[Site "Bad Blankeburg"]
[Date "2018.07.18"]
[Round "7"]
[White "Dobrovoljc, Vid"]
[Black "Gavrilescu, David"]
[Result "0-1"]
[ECO "C11"]
[WhiteElo "2344"]
[BlackElo "2451"]
[Annotator "RC"]
[PlyCount "76"]
[EventDate "2018.07.12"]
[EventType "swiss"]
[EventCountry "GER"]
[SourceTitle "playchess.com"]
[Source "ChessBase"]
[SourceQuality "1"]
[WhiteTeam "Slovenia"]
[BlackTeam "Romania"]
[WhiteTeamCountry "SLO"]
[BlackTeamCountry "ROU"]
[TimeControl "40/5400+30:1800+30"]

1. e4 {[%emt 0:00:00]} e6 {[%emt 0:00:00]} 2. d4 {[%emt 0:00:00]} d5 {[%emt 0:00:04]} 3. Nc3 {[%emt 0:00:18]} Nf6 {[%emt 0:00:08]} 4. e5 {[%emt 0:00:37]} Nfd7 {[%emt 0:00:05]} 5. f4 {[%emt 0:00:29]} c5 {[%emt 0:00:04]} 6. Nf3 {[%emt 0:00:07]} Nc6 {[%emt 0:00:04]} 7. Be3 {[%emt 0:00:52]} Qb6 {[%emt 0:00:05]} 8. Na4 {[%emt 0:04:27]} Qa5+ {[%emt 0:00:50]} 9. c3 {[%emt 0:01:38]} b6 {[%emt 0:00:10]} 10. Bd2 {[%emt 0:19:06]} c4 {[%emt 0:01:44]} 11. b4 {[%emt 0:01:28]} Nxb4 {[%emt 0:00:10]} 12. cxb4 {[%emt 0:00:12]} Bxb4 {[%emt 0:00:06]} 13. Rc1 {[%emt 0:08:02]} Bxd2+ {[%emt 0:01:09]} 14. Nxd2 {[%emt 0:02:59]} b5 {[%emt 0:00:08]} 15. Nc3 {[%emt 0:00:18]} b4 {[%emt 0:07:09]} 16. Qa4 {[%emt 0:05:26]} Qb6 {[%emt 0:05:01]} 17. Nb5 {[%emt 0:01:11]} O-O {[%emt 0:01:21]} 18. Nf3 {[%emt 0:00:10]} Nb8 {[%emt 0:04:33]} 19. Nd6 {[%emt 0:05:53]} Bd7 {[%emt 0:04:42]} 20. Qc2 {[%emt 0:00:57]} Nc6 {[%emt 0:03:11]} 21. Rd1 {[%emt 0:01:06]} a5 {[%emt 0:13:27]} 22. Be2 {[%emt 0:05:58]} b3 {[%emt 0:08:40]} 23. Qc3 {[%emt 0:04:04]} bxa2 {[%emt 0:01:31]} 24. Ra1 {[%emt 0:01:36]} Rfb8 {[%emt 0:03:09]} 25. Kf2 {[%emt 0:08:50]} Qb2 {[%emt 0:03:50]} 26. Rhc1 {[%emt 0:03:14]} a4 {[%emt 0:01:14]} 27. Qc2 {[%emt 0:12:26]} a3 {[%emt 0:04:39]} 28. Rxa2 {[%emt 0:03:27]} Qxc2 {[%emt 0:00:04]} 29. Raxc2 {[%emt 0:00:17]} Nb4 {[%emt 0:00:10]} 30. Rd2 {[%emt 0:02:03]} a2 {[%emt 0:00:46]} 31. Ra1 {[%emt 0:00:10]} c3 {[%emt 0:00:11]} 32. Rdd1 {[%emt 0:00:22]} Nc2 {[%emt 0:00:01]} 33. Bd3 {[%emt 0:00:21]} Nxa1 {[%emt 0:00:09]} 34. Rxa1 {[%emt 0:00:04]} Rb2+ {[%emt 0:00:05]} 35. Ke3 {[%emt 0:01:04]} c2 {[%emt 0:00:02]} 36. Ne1 {[%emt 0:00:40]} c1=Q+ {[%emt 0:00:17]} 37. Rxc1 {[%emt 0:00:03]} a1=Q {[%emt 0:00:10]} 38. Rxa1 {[%emt 0:00:03]} Rxa1 {[%emt 0:00:06]} 0-1

[Event "EYTCC Open U18 2018"]
[Site "Bad Blankeburg"]
[Date "2018.07.18"]
[Round "7"]
[White "Banzea, Alexandru-Bogdan"]
[Black "Subelj, Jan"]
[Result "0-1"]
[ECO "C60"]
[WhiteElo "2337"]
[BlackElo "2327"]
[Annotator "ChessBase"]
[PlyCount "88"]
[EventDate "2018.07.12"]
[EventType "swiss"]
[EventCountry "GER"]
[SourceTitle "playchess.com"]
[Source "ChessBase"]
[SourceQuality "1"]
[WhiteTeam "Romania"]
[BlackTeam "Slovenia"]
[WhiteTeamCountry "ROU"]
[BlackTeamCountry "SLO"]
[TimeControl "40/5400+30:1800+30"]

1. e4 {[%emt 0:00:00]} e5 {[%emt 0:00:08]} 2. Nf3 {[%emt 0:00:00]} Nc6 {[%emt 0:00:46]} 3. Bb5 {[%emt 0:00:00]} g6 {[%emt 0:00:20]} 4. O-O {[%emt 0:00:14]} Bg7 {[%emt 0:00:04]} 5. c3 {[%emt 0:00:03]} a6 {[%emt 0:00:13]} 6. Ba4 {[%emt 0:00:06]} d6 {[%emt 0:00:29]} 7. d4 {[%emt 0:00:24]} Bd7 {[%emt 0:03:40]} 8. dxe5 {[%emt 0:00:53]} Nxe5 {[%emt 0:00:34]} 9. Nxe5 {[%emt 0:00:39]} dxe5 {[%emt 0:00:12]} 10. Bb3 {[%emt 0:00:10]} Nf6 {[%emt 0:00:20]} 11. Be3 {[%emt 0:03:37]} Nxe4 {[%emt 0:21:56]} 12. Bxf7+ {[%emt 0:01:12]} Kxf7 {[%emt 0:00:02]} 13. Qd5+ {[%emt 0:00:06]} Be6 {[%emt 0:00:08]} 14. Qxe4 {[%emt 0:00:06]} Bd5 {[%emt 0:06:06]} 15. Qg4 {[%emt 0:02:16]} Qc8 {[%emt 0:21:03]} 16. Qh4 {[%emt 0:06:30]} Bf6 {[%emt 0:02:42]} 17. Qg3 {[%emt 0:03:40]} h5 {[%emt 0:01:46]} 18. f4 {[%emt 0:04:06]} h4 {[%emt 0:00:14]} 19. Qf2 {[%emt 0:00:44]} Rh5 {[%emt 0:05:10]} 20. fxe5 {[%emt 0:03:16]} Rf5 {[%emt 0:00:40]} 21. Qe2 {[%emt 0:06:01]} Bxe5 {[%emt 0:00:40]} 22. Nd2 {[%emt 0:02:41]} Qe6 {[%emt 0:02:56]} 23. Nf3 {[%emt 0:07:06]} Bf4 {[%emt 0:04:13]} 24. Ng5+ {[%emt 0:06:14]} Bxg5 {[%emt 0:00:43]} 25. Rxf5+ {[%emt 0:00:10]} gxf5 {[%emt 0:00:07]} 26. Qh5+ {[%emt 0:00:23]} Qg6 {[%emt 0:00:04]} 27. Qxg5 {[%emt 0:00:51]} Rg8 {[%emt 0:11:06]} 28. Rd1 {[%emt 0:04:03]} Qxg5 {[%emt 0:00:05]} 29. Bxg5 {[%emt 0:00:06]} Ke6 {[%emt 0:00:39]} 30. c4 {[%emt 0:03:46]} Be4 {[%emt 0:00:20]} 31. Bxh4 {[%emt 0:00:37]} Rxg2+ {[%emt 0:00:09]} 32. Kf1 {[%emt 0:00:10]} Rxb2 {[%emt 0:01:43]} 33. Bg3 {[%emt 0:03:15]} Rxa2 {[%emt 0:00:05]} 34. Bxc7 {[%emt 0:00:28]} Rc2 {[%emt 0:00:10]} 35. Rd6+ {[%emt 0:01:16]} Ke7 {[%emt 0:00:01]} 36. Rd4 {[%emt 0:00:19]} Rxc4 {[%emt 0:00:07]} 37. Rxc4 {[%emt 0:00:09]} Bd3+ {[%emt 0:00:04]} 38. Kf2 {[%emt 0:00:06]} Bxc4 {[%emt 0:00:03]} 39. h4 {[%emt 0:02:05]} Kd7 {[%emt 0:00:36]} 40. Ba5 {[%emt 0:00:48]} Bf7 {[%emt 0:00:28]} 41. Ke3 {[%emt 0:30:04]} Kc6 {[%emt 0:30:34]} 42. Kf4 {[%emt 0:00:21]} Kb5 {[%emt 0:00:05]} 43. Bc3 {[%emt 0:00:33]} Kc4 {[%emt 0:00:05]} 44. Be5 {[%emt 0:00:11]} b5 0-1